[Event "German-ch Blitz Women 2022"]
[Site "Magdeburg"]
[Date "2022.08.13"]
[Round "14.3"]
[White "Braun, Kristin"]
[Black "Muetsch, Annmarie"]
[Result "1/2-1/2"]
[ECO "C50"]
[WhiteElo "1897"]
[BlackElo "2249"]
[Annotator "TA"]
[PlyCount "90"]
[EventDate "2022.08.10"]
[EventType "tourn"]
[EventCountry "GER"]
[SourceTitle "playchess.com"]
[Source "ChessBase"]
[SourceQuality "1"]
[TimeControl "180+2"]

{[%evp 17,90,0,3,-33,-21,-22,-29,-33,-23,-27,-18,-18,-10,-19,-6,-7,-14,-17,0,-5,0,-25,-25,-21,-25,-68,-69,-77,-87,-131,-14,-22,-10,-10,-14,-16,-13,-9,0,-6,0,-10,-10,-12,0,0,0,0,0,0,0,0,0,0,0,0,0,0,0,0,0,-198,0,0,0,0,0,0,0,0,0,0,0,0,0]} 1. e4 {[%emt 0:00:00]} e5 {[%emt 0:00:01]} 2. Nf3 {[%emt 0:00:01]} Nc6 {[%emt 0:00:00]} 3. Bc4 {[%emt 0:00:00]} Bc5 {[%emt 0:00:03]} 4. d3 {[%emt 0:00:01]} Nf6 5. c3 d6 {[%emt 0:00:07]} 6. Nbd2 {[%emt 0:00:02]} a6 {[%emt 0:00:02]} 7. Bb3 {[%emt 0:00:01]} Ba7 {[%emt 0:00:03]} 8. h3 {[%emt 0:00:02]} O-O {[%emt 0:00:03]} 9. Nf1 {[%emt 0:00:01]} d5 {[%emt 0:00:09]} 10. Ng3 {[%emt 0:00:21] C54: Giuoco Piano: 4 c3 Nf6, main lines with 5 d4 and 5 d3.} dxe4 {[%emt 0:00:37]} 11. dxe4 {[%emt 0:00:00]} (11. Nxe4 {seems wilder.} Nxe4 12. dxe4 Na5 13. Bc2) 11... Qxd1+ {[%emt 0:00:03]} 12. Bxd1 {[%emt 0:00:02] Black has an edge.} Be6 {[%emt 0:00:07]} 13. O-O {[%emt 0:00:07] [#]} Bc4 $146 {[%emt 0:00:05]} ({Predecessor:} 13... h6 14. Be2 Nd7 15. Nh4 Kh7 16. Nhf5 Nc5 17. Bf3 Nd3 18. b3 g6 19. Ne3 Nxc1 20. Raxc1 Bxe3 21. fxe3 {½-½ (44) Gorbanovsky,O (2172)-Costachi,M (2228) Iasi 2014}) 14. Re1 {[%emt 0:00:16]} h6 {[%emt 0:00:29]} 15. Bc2 {[%emt 0:00:21]} Rad8 {[%emt 0:00:05][%cal Ba8d8,Bd8d7,Bd7d3][%mdl 32]} 16. Be3 {[%emt 0:00:07]} (16. Ba4 $5 {[%cal Ra4c6]} b5 17. Bc2 $11) 16... Bxe3 {[%emt 0:00:11]} 17. Rxe3 {[%emt 0:00:01]} Rd7 {[%emt 0:00:10]} 18. Ree1 {[%emt 0:00:02]} Rfd8 {[%emt 0:00:03]} 19. b3 {[%emt 0:00:11]} (19. Ba4 $5 {[%cal Ra4c6]} b5 20. Bb3 $11) 19... Bd3 {[%emt 0:00:04]} 20. Bxd3 {[%emt 0:00:13]} Rxd3 21. c4 g6 {[%emt 0:00:14]} 22. Kf1 {[%emt 0:00:03][%cal Bg1f1,Bf1e2,Be2d1,Bd1d2,Bd2c3][%mdl 32]} h5 {[%emt 0:00:10]} 23. Ke2 {[%emt 0:00:10] [#]} Kf8 {[%emt 0:00:15]} ({Better is} 23... Rxf3 $1 $17 {[%mdl 512]} 24. Kxf3 (24. gxf3 h4) 24... Nd4+ 25. Ke3 Nc2+ 26. Kf3 Rd3+ 27. Ke2 Rd4) 24. Rad1 {[%emt 0:00:01]} Rxd1 {[%emt 0:00:03]} 25. Rxd1 {[%emt 0:00:00]} Rxd1 {[%emt 0:00:04]} 26. Kxd1 $11 {[%emt 0:00:01][%mdl 4096] Endgame KNN-KNN} Ke7 {[%emt 0:00:01]} 27. Kd2 {[%emt 0:00:02]} Ke6 {[%emt 0:00:03]} 28. a3 {[%emt 0:00:04]} a5 {[%emt 0:00:11]} 29. Ng5+ {[%emt 0:00:10]} Ke7 {[%emt 0:00:04]} 30. Nf3 {[%emt 0:00:01]} Nd7 {[%emt 0:00:08]} 31. Kc3 {[%emt 0:00:12] Inhibits Nd4.} f6 {[%emt 0:00:05]} 32. b4 {[%emt 0:00:05]} axb4+ {[%emt 0:00:07]} 33. axb4 b6 {[%emt 0:00:03]} 34. Nf1 {[%emt 0:00:08]} Ke6 {[%emt 0:00:08]} 35. Ne3 {[%emt 0:00:01]} Ne7 {[%emt 0:00:03]} 36. Nd5 {[%emt 0:00:02]} Nxd5+ {[%emt 0:00:02]} 37. cxd5+ {[%emt 0:00:03] KN-KN} Kd6 {[%emt 0:00:01]} 38. Nd2 {[%emt 0:00:02]} b5 {[%emt 0:00:02] Inhibits Nc4+.} 39. Nf3 $2 {[%emt 0:00:04] [#]} (39. g3 $11 {and White stays safe.}) 39... c6 $2 {[%emt 0:00:07]} (39... f5 $1 $19 40. Ng5 fxe4 41. Nxe4+ Kxd5) 40. dxc6 {[%emt 0:00:04] The position is equal.} Kxc6 {[%emt 0:00:01]} 41. Nh4 {[%emt 0:00:05]} Nf8 {[%emt 0:00:00]} 42. g3 {[%emt 0:00:07]} Kd6 {[%emt 0:00:01]} 43. Ng2 {[%emt 0:00:04]} Ne6 {[%emt 0:00:02]} 44. Nh4 {[%emt 0:00:01]} Nf8 {[%emt 0:00:02]} 45. Ng2 {[%emt 0:00:01]} Ne6 {[%emt 0:00:03] Weighted Error Value: White=0.19 (very precise) /Black=0.15 (very precise)} 1/2-1/2

[Event "German-ch Blitz Women 2022"]
[Site "Magdeburg"]
[Date "2022.08.13"]
[Round "14.4"]
[White "Skibbe, Diana"]
[Black "Zhou, Lepu Coco"]
[Result "1-0"]
[ECO "B21"]
[WhiteElo "1943"]
[BlackElo "1986"]
[Annotator "TA"]
[PlyCount "89"]
[EventDate "2022.08.10"]
[EventType "tourn"]
[EventCountry "GER"]
[SourceTitle "playchess.com"]
[Source "ChessBase"]
[SourceQuality "1"]
[TimeControl "180+2"]

{[%evp 15,89,-4,0,-8,0,-43,-43,-32,239,247,362,354,346,346,355,347,342,323,429,433,408,355,364,360,385,382,389,380,405,407,408,398,386,409,404,392,371,293,291,289,377,368,343,313,416,420,401,408,429,400,413,395,433,389,483,364,554,571,569,568,583,576,611,610,630,593,591,591,567,520,535,389,434,394,1131,1135]} 1. e4 {[%cal Be2e4,Be4e5][%mdl 32]} c5 2. d4 cxd4 3. c3 Nf6 4. e5 Nd5 5. Qxd4 e6 6. Nf3 Nc6 7. Qe4 d6 8. exd6 Bxd6 9. Bd3 {B22: Sicilian: 2 c3.} f5 {[#]} 10. Qa4 $146 (10. Qe2 $5 {[%cal Rd3f5]}) ({Predecessor:} 10. Qe2 O-O 11. O-O Kh8 12. Rd1 Qf6 13. g3 e5 14. Nbd2 e4 15. Nxe4 fxe4 16. Qxe4 g6 17. Qxd5 Qxf3 18. Qxf3 Rxf3 {1-0 (35) Jobava,B (2603)-Kaasen,T (2381) Chess.com INT 2020}) 10... O-O 11. O-O {Black is slightly better.} e5 $2 {[%mdl 8192] [#] This move loses the game for Black.} (11... h6 $15 {stays ahead.}) 12. Bc4 $1 $18 Be6 (12... Nce7 {was necessary.}) 13. Ng5 Qe7 14. Nxe6 ({Not} 14. Rd1 Nc7 $14) 14... Qxe6 15. Qb3 Nce7 16. Rd1 ({Less strong is} 16. Qxb7 Rac8 17. Qb3 Rb8 $14) 16... Rad8 {[%cal Oe5e4]} 17. Bxd5 Nxd5 18. Qxd5 Qxd5 19. Rxd5 Bb8 20. Rxd8 Rxd8 {[%cal Rd8d1] [#]} 21. Nd2 e4 22. Kf1 Bxh2 23. g3 {Against Bf4} f4 24. Nxe4 fxg3 25. Bg5 Rf8 26. Kg2 gxf2 27. Nxf2 Bd6 28. Rd1 Bc5 29. Bh4 g5 30. Bg3 h5 31. Ne4 {[%csl LRc5,LRg5]} Be3 32. Rd3 Bc1 33. b3 h4 34. Bf2 Rf7 35. Bd4 g4 (35... Kh7 $142 36. Bxa7 Re7) 36. Nf6+ Kf8 37. Nxg4 Bf4 38. Kh3 Bg3 39. Nf6 b6 40. Nh5 Be1 41. Bf6 {[%cal Rd3d8]} Rc7 42. Bxh4 Bxc3 43. Rf3+ Kg8 44. Nf6+ Kh8 $2 (44... Bxf6 45. Rxf6 Rc2) 45. Nd5 {[%csl LRc3,LRc7] Weighted Error Value: White=0.10 (very precise) /Black=0.45} 1-0

[Event "German-ch Blitz Women 2022"]
[Site "Magdeburg"]
[Date "2022.08.13"]
[Round "14.5"]
[White "Rath, Alina"]
[Black "Nikolaeva, Mariya A"]
[Result "0-1"]
[ECO "A16"]
[WhiteElo "2062"]
[BlackElo "1309"]
[Annotator "NA RC"]
[PlyCount "166"]
[EventDate "2022.08.10"]
[EventType "tourn"]
[EventCountry "GER"]
[SourceTitle "playchess.com"]
[Source "ChessBase"]
[SourceQuality "1"]
[TimeControl "180+2"]

1. c4 {[%emt 0:00:01]} Nf6 {[%emt 0:00:01]} 2. Nc3 {[%emt 0:00:01]} g6 {[%emt 0:00:00]} 3. g3 {[%emt 0:00:01]} Bg7 {[%emt 0:00:01]} 4. Bg2 {[%emt 0:00:01]} d6 {[%emt 0:00:01]} 5. e4 {[%emt 0:00:01]} e5 {[%emt 0:00:00]} 6. Nge2 {[%emt 0:00:01]} O-O {[%emt 0:00:02]} 7. O-O {[%emt 0:00:01]} Nc6 {[%emt 0:00:01]} 8. d3 {[%emt 0:00:01]} a5 {[%emt 0:00:04]} 9. h3 {[%emt 0:00:01]} Nd7 {[%emt 0:00:02]} 10. f4 {[%emt 0:00:02]} f5 {[%emt 0:00:02]} 11. Be3 {[%emt 0:00:01]} exf4 {[%emt 0:00:04]} 12. Nxf4 {[%emt 0:00:11]} Nf6 {[%emt 0:00:09]} 13. Qd2 {[%emt 0:00:06]} fxe4 {[%emt 0:00:06]} 14. dxe4 {[%emt 0:00:02]} Kh8 {[%emt 0:00:10]} 15. b3 {[%emt 0:00:05]} Re8 {[%emt 0:00:05]} 16. Rae1 {[%emt 0:00:02]} Bd7 {[%emt 0:00:21]} 17. Ncd5 {[%emt 0:00:02]} a4 {[%emt 0:00:24]} 18. Nxf6 {[%emt 0:00:06]} Bxf6 {[%emt 0:00:02]} 19. Nd5 {[%emt 0:00:01]} Bg7 {[%emt 0:00:04]} 20. Bg5 {[%emt 0:00:04]} Qc8 {[%emt 0:00:12]} 21. Rf7 {[%emt 0:00:21]} Ne5 {[%emt 0:00:08]} 22. Rxg7 {[%emt 0:00:12]} Kxg7 {[%emt 0:00:05]} 23. Bh6+ {[%emt 0:00:03]} Kh8 {[%emt 0:00:16]} 24. Qg5 {[%emt 0:00:23]} Qd8 {[%emt 0:00:14]} 25. Qe3 {[%emt 0:00:14]} Be6 {[%emt 0:00:07]} 26. Bg5 {[%emt 0:00:07]} Qc8 {[%emt 0:00:16]} 27. Bf6+ {[%emt 0:00:03]} Kg8 {[%emt 0:00:01]} 28. Qh6 {[%emt 0:00:34]} Qd7 {[%emt 0:00:01]} 29. Bxe5 {[%emt 0:00:24]} Bxd5 {[%emt 0:00:13]} 30. Bb2 {[%emt 0:00:03]} Be6 {[%emt 0:00:07]} 31. g4 {[%emt 0:00:05]} axb3 {[%emt 0:00:02]} 32. axb3 {[%emt 0:00:01]} Ra2 {[%emt 0:00:05]} 33. Qc1 {[%emt 0:00:06]} Rf8 {[%emt 0:00:05]} 34. Qc3 {[%emt 0:00:04]} Rxb2 {[%emt 0:00:03]} 35. Qxb2 {[%emt 0:00:01]} c6 {[%emt 0:00:04]} 36. Qd4 {[%emt 0:00:01]} Qe7 {[%emt 0:00:05]} 37. Rd1 {[%emt 0:00:02]} Qf7 {[%emt 0:00:07]} 38. Qxd6 {[%emt 0:00:04]} Qf2+ {[%emt 0:00:01]} 39. Kh1 {[%emt 0:00:00]} Bf7 {[%emt 0:00:05]} 40. Rf1 {[%emt 0:00:02]} Qb6 {[%emt 0:00:03]} 41. e5 {[%emt 0:00:02]} Re8 {[%emt 0:00:05]} 42. Qd7 {[%emt 0:00:09]} Rf8 {[%emt 0:00:04]} 43. e6 {[%emt 0:00:01]} Be8 {[%emt 0:00:09]} 44. Rxf8+ {[%emt 0:00:08]} Kxf8 {[%emt 0:00:01]} 45. Qd6+ {[%emt 0:00:01]} Kg8 {[%emt 0:00:02]} 46. e7 {[%emt 0:00:05]} Qxb3 {[%emt 0:00:02]} 47. Qe6+ {[%emt 0:00:05]} Kg7 {[%emt 0:00:02]} 48. Qe5+ {[%emt 0:00:02]} Kg8 {[%emt 0:00:02]} 49. Qe6+ {[%emt 0:00:05]} Kg7 {[%emt 0:00:01]} 50. Kh2 {[%emt 0:00:01]} Qb6 {[%emt 0:00:04]} 51. Qe5+ {[%emt 0:00:05]} Kf7 {[%emt 0:00:03]} 52. g5 {[%emt 0:00:02]} Qf2 {[%emt 0:00:06]} 53. Kh1 {[%emt 0:00:07]} Qf5 {[%emt 0:00:02]} 54. Qc7 {[%emt 0:00:09]} Qb1+ {[%emt 0:00:01]} 55. Kh2 {[%emt 0:00:01]} Qf5 {[%emt 0:00:01]} 56. Qxb7 {[%emt 0:00:02]} Qf4+ {[%emt 0:00:02]} 57. Kg1 {[%emt 0:00:01]} Qc1+ {[%emt 0:00:01]} 58. Bf1 {[%emt 0:00:02]} Qxg5+ {[%emt 0:00:02]} 59. Bg2 {[%emt 0:00:01]} Qxe7 {[%emt 0:00:02]} 60. Qb3 {[%emt 0:00:02]} Qe1+ {[%emt 0:00:02]} 61. Kh2 {[%emt 0:00:01]} Qe5+ {[%emt 0:00:01]} 62. Kg1 {[%emt 0:00:01]} Qe1+ {[%emt 0:00:02]} 63. Kh2 {[%emt 0:00:00]} Qe5+ {[%emt 0:00:01]} 64. Kg1 {[%emt 0:00:01]} c5 {[%emt 0:00:01]} 65. Bd5+ {[%emt 0:00:02]} Kg7 {[%emt 0:00:01]} 66. Qb7+ {[%emt 0:00:01]} Kh6 {[%emt 0:00:03]} 67. Qb1 {[%emt 0:00:06]} Bd7 {[%emt 0:00:03]} 68. Qc1+ {[%emt 0:00:01]} Qg5+ {[%emt 0:00:01]} 69. Qxg5+ {[%emt 0:00:02]} Kxg5 {[%emt 0:00:01]} 70. Kg2 {[%emt 0:00:01]} Kh4 {[%emt 0:00:01]} 71. Bg8 {[%emt 0:00:01]} Bxh3+ {[%emt 0:00:01]} 72. Kf3 {[%emt 0:00:01]} h5 {[%emt 0:00:01]} 73. Bh7 {[%emt 0:00:03]} Kg5 {[%emt 0:00:01]} 74. Kg3 {[%emt 0:00:01]} Bf5 {[%emt 0:00:01]} 75. Bg8 {[%emt 0:00:01]} h4+ {[%emt 0:00:01]} 76. Kg2 Kg4 77. Bd5 {[%emt 0:00:02]} h3+ {[%emt 0:00:01]} 78. Kh2 {[%emt 0:00:01]} Kf4 {[%emt 0:00:03]} 79. Bf7 {[%emt 0:00:02]} g5 {[%emt 0:00:01]} 80. Bd5 {[%emt 0:00:02]} g4 {[%emt 0:00:00]} 81. Kg1 {[%emt 0:00:01]} g3 {[%emt 0:00:02]} 82. Kf1 {[%emt 0:00:01]} h2 {[%emt 0:00:02]} 83. Kg2 {[%emt 0:00:02]} Be4+ 0-1

[Event "German-ch Blitz Women 2022"]
[Site "Magdeburg"]
[Date "2022.08.13"]
[Round "14.6"]
[White "Kunze, Kerstin"]
[Black "Schulze, Lara"]
[Result "1-0"]
[ECO "B31"]
[WhiteElo "2020"]
[BlackElo "2292"]
[Annotator "TA"]
[PlyCount "61"]
[EventDate "2022.08.10"]
[EventType "tourn"]
[EventCountry "GER"]
[SourceTitle "playchess.com"]
[Source "ChessBase"]
[SourceQuality "1"]
[TimeControl "180+2"]

{[%evp 9,61,11,29,-22,-17,-26,-19,-20,-20,-38,0,-27,0,0,0,0,0,0,0,0,0,0,6,-5,66,65,65,64,62,62,61,56,60,55,88,93,158,154,150,39,50,-33,0,0,37,37,29989,29990,29994,476,29980,520,29981,29982]} 1. e4 c5 2. Nf3 Nc6 3. Bb5 g6 4. O-O Bg7 5. Re1 e5 6. c4 {B31: Sicilian: 2...Nc6 3 Bb5 g6.} ({White should play} 6. Bc4) 6... Nge7 $11 {[%cal Bg8e7,Be7f5,Bf5d4][%mdl 32]} 7. Nc3 O-O 8. d3 {The position is equal.} d6 {[#]} 9. a3 $146 ({Predecessor:} 9. Nd5 Nxd5 10. exd5 Ne7 11. Rb1 a6 12. Ba4 b5 13. Bc2 b4 14. h3 f5 15. Bg5 {1-0 (68) Dahampriya,H (1433)-Ranasinghe,S (1844) Nugegoda 2019}) 9... h6 10. Rb1 f5 11. exf5 Nxf5 12. Ne4 Ncd4 13. Nxd4 Nxd4 14. Ba4 Kh7 15. Be3 Bf5 16. b4 b6 (16... Bxe4 $11 17. dxe4 Qe7) 17. Bxd4 $14 cxd4 18. Bc6 $1 Rc8 19. Bd5 Bf6 20. a4 {[%cal Oa4a5] White is more active.} Bh4 21. Rf1 Qd7 22. a5 bxa5 (22... Bd8 $142) 23. bxa5 $16 Rb8 24. Qd2 (24. a6 $16) 24... Bxe4 25. Bxe4 {[#]} ({Better is} 25. Rxb8 $14 Rxb8 26. Bxe4) 25... Bxf2+ $1 26. Kh1 {Hoping for Rxb8.} Rxb1 27. Rxb1 {Rb7 is the strong threat.} Kg8 $2 {[%mdl 8192] Black cannot hold the game after this.} (27... Be3 $14 28. Qd1 Rf7) 28. Qxh6 Qg7 29. Qh3 (29. Bd5+ $142 Qf7 30. Rb7 Bh4 31. Bxf7+ Rxf7 32. Rb8+ Bd8 33. Rxd8+ Rf8 34. Rxf8#) 29... Be3 (29... Qh7 $18 30. Qe6+ Kh8 31. Qxd6 (31. Bxg6 Qh6 $18) 31... Qg7) 30. g3 (30. Bd5+ $142 Qf7 31. Bxf7+ Kxf7 32. Qd7+ Kg8 33. Qxd6 Bc1 34. Qxg6+ Kh8 35. g3) 30... Qf6 (30... Qh7 $18 31. Qe6+ Kh8 32. Qxd6 Qg7) 31. Bd5+ {Weighted Error Value: White=0.65/Black=0.77} 1-0

[Event "German-ch Blitz Women 2022"]
[Site "Magdeburg"]
[Date "2022.08.13"]
[Round "14.7"]
[White "Doll, Rebecca"]
[Black "Melamed, Tatjana"]
[Result "0-1"]
[ECO "B03"]
[WhiteElo "1933"]
[BlackElo "2380"]
[Annotator "TA"]
[PlyCount "126"]
[EventDate "2022.08.10"]
[EventType "tourn"]
[EventCountry "GER"]
[SourceTitle "playchess.com"]
[Source "ChessBase"]
[SourceQuality "1"]
[TimeControl "180+2"]

{[%evp 9,126,16,46,49,60,59,77,58,65,67,73,0,8,12,8,0,2,10,78,59,60,61,81,104,81,48,59,37,62,55,54,38,41,40,45,0,0,-4,-14,-10,8,0,7,8,13,13,27,0,27,-176,-159,-172,-175,-446,-426,-400,-352,-401,-278,-260,-161,-251,-176,-176,-171,-587,-574,-764,-460,-367,122,112,133,128,117,111,143,56,56,0,57,57,65,51,150,24,24,28,102,57,57,0,57,0,58,0,57,57,57,18,55,38,64,64,72,53,57,43,77,0,0,0,0,0,0,0,0,0,0]} 1. e4 {[%emt 0:00:01][%cal Be2e4,Be4e5][%mdl 32]} Nf6 {[%emt 0:00:01][%cal Bg8f6,Bf6d5,Bd5b6][%mdl 32]} 2. e5 {[%emt 0:00:02]} Nd5 {[%emt 0:00:01]} 3. d4 {[%emt 0:00:02]} d6 {[%emt 0:00:01]} 4. Bc4 {[%emt 0:00:05]} Nb6 {[%emt 0:00:01]} 5. Bb3 {[%emt 0:00:01]} e6 {[%emt 0:00:02]} 6. Nf3 {[%emt 0:00:06] B03: Alekhine's Defence: Four Pawns Attack.} Be7 {[%emt 0:00:02]} 7. O-O {[%emt 0:00:04]} O-O {[%emt 0:00:02] [#]} 8. Nbd2 $146 {[%emt 0:00:19] White is better.} ({Predecessor:} 8. Qe2 d5 9. c3 c5 10. Bc2 cxd4 11. cxd4 Nc6 12. Nc3 f5 13. exf6 Bxf6 14. Rd1 {1-0 (34) Ruiz Sanchez,O (2389)-Camaton Borbor,C (2305) Santa Clara 2019}) 8... a5 {[%emt 0:00:03]} 9. c3 {[%emt 0:00:02]} N8d7 {[%emt 0:00:19]} 10. Ne4 {[%emt 0:00:07]} (10. Bc2 $16) 10... dxe5 $11 {[%emt 0:00:10]} 11. dxe5 {[%emt 0:00:06] Threatening Qd3.} Nc5 {[%emt 0:00:01] Prevents Qd3.} 12. Bc2 {[%emt 0:00:16]} Qxd1 {[%emt 0:00:02]} 13. Rxd1 {[%emt 0:00:03]} Bd7 {[%emt 0:00:26]} (13... a4 $11) 14. Be3 {[%emt 0:00:06]} Nxe4 {[%emt 0:00:13]} 15. Bxe4 {[%emt 0:00:02] Black must now prevent Bxb6.} Bc8 {[%emt 0:00:23]} 16. Bxb6 {[%emt 0:00:20]} cxb6 {[%emt 0:00:01][%cal Bc7b6,Bb6b5,Bb5b4][%mdl 32]} 17. Rd3 {[%emt 0:00:27]} b5 {[%emt 0:00:06]} 18. Rad1 {[%emt 0:00:11]} Ra6 {[%emt 0:00:03]} 19. Nd4 {[%emt 0:00:08]} Rb6 {[%emt 0:00:01]} 20. f4 {[%emt 0:00:18]} f6 {[%emt 0:00:06]} 21. exf6 {[%emt 0:00:03]} Bxf6 {[%emt 0:00:03]} 22. g3 {[%emt 0:00:04]} b4 {[%emt 0:00:15]} 23. Nb3 {[%emt 0:00:07]} a4 {[%emt 0:00:07]} 24. Nc5 {[%emt 0:00:08]} a3 25. bxa3 {[%emt 0:00:12]} bxc3 {[%emt 0:00:04]} 26. Na4 {[%emt 0:00:03][%csl LRb6,LRc3]} Ra6 {[%emt 0:00:08]} 27. Nxc3 {[%emt 0:00:07]} Rxa3 {[%emt 0:00:01]} 28. Rc1 {[%emt 0:00:10]} (28. Nd5 $5 {[%cal Rd5f6]} Rxa2 29. Nxf6+ gxf6 30. Rb3 $11) 28... b6 {[%emt 0:00:10] [#]} 29. Rc2 $2 {[%emt 0:00:02]} (29. Nd5 $1 $11 Ra4 30. Nxf6+ gxf6 31. Bg2) 29... Ba6 $36 {[%emt 0:00:01][%mdl 2048] Black is really pushing.} 30. Rf3 {[%emt 0:00:03] [#]} Rc8 $1 {[%emt 0:00:09]} 31. Nd5 {[%emt 0:00:12]} (31. Nb1 {was necessary.} Ra4 32. Rxc8+ Bxc8 33. Nd2 (33. Nc3 $2 Rc4 $19)) 31... Bd4+ {[%emt 0:00:05] A strong pair of Bishops.} 32. Kh1 {[%emt 0:00:05]} Rxf3 {[%emt 0:00:04]} 33. Ne7+ {[%emt 0:00:03]} Kf7 {[%emt 0:00:01] ( -> ...Rxc2)} 34. Nxc8 {[%emt 0:00:02]} Rf1+ {[%emt 0:00:12]} 35. Kg2 {[%emt 0:00:00]} Rg1+ {[%emt 0:00:01]} 36. Kh3 {[%emt 0:00:01]} Bc5 {[%emt 0:00:05]} 37. Bxh7 $2 {[%emt 0:00:03]} (37. Na7) 37... Bxc8 {[%emt 0:00:02]} 38. a4 {[%emt 0:00:04]} Ba6 {[%emt 0:00:03] Threatens to win with ...g6.} 39. a5 {[%emt 0:00:02]} Bd3 $2 {[%emt 0:00:05]} 40. Bxd3 $16 {[%emt 0:00:02][%mdl 4096] Endgame KRB-KRB} Ra1 {[%emt 0:00:09]} 41. axb6 Bxb6 {[%emt 0:00:00]} 42. Rc6 {[%emt 0:00:02]} Bd4 {[%emt 0:00:03]} 43. Rc7+ {[%emt 0:00:01]} (43. Bc4 $16) 43... Kf6 $14 {[%emt 0:00:00]} 44. Rc6 {[%emt 0:00:00]} (44. Rc4 $14 e5 45. Rc6+ Ke7 46. f5) 44... Re1 {[%emt 0:00:02]} (44... Kf7 $1 $11) 45. Bc4 {[%emt 0:00:01]} Kf5 {[%emt 0:00:02]} 46. Kg2 {[%emt 0:00:02]} Rd1 {[%emt 0:00:02]} (46... Re3 $14) 47. Bb3 {[%emt 0:00:02]} ({Don't do} 47. Rxe6 Rd2+ 48. Re2 Rxe2+ 49. Bxe2 g5 $14) (47. Bxe6+ $16 Ke4 48. h4) 47... Rd2+ $11 {[%emt 0:00:02]} 48. Kh3 {[%emt 0:00:02]} Re2 {[%emt 0:00:02]} (48... e5 $11) 49. Bc2+ {[%emt 0:00:02]} Kf6 {[%emt 0:00:01]} 50. Bb3 {[%emt 0:00:02]} (50. Bd1 $1 $14 Rb2 51. Kg4) 50... Bg1 {[%emt 0:00:02]} (50... Kf5 $1 $11) 51. Kg4 {[%emt 0:00:03]} ({White should play} 51. Bc4 $1 $14 Rxh2+ 52. Kg4) 51... Ke7 {[%emt 0:00:08]} (51... Re3 $11 52. Bd1 Bxh2) 52. Kf3 {[%emt 0:00:02]} ({White should try} 52. Bc4 $14 Re1 53. Rc7+ Kf6 54. Bb5) 52... Re1 {[%emt 0:00:02]} (52... Rf2+ $11 53. Kg4 Rxh2) 53. Kg2 $14 {[%emt 0:00:02][%cal Ob3e6]} Bd4 {[%emt 0:00:02]} 54. Ra6 {[%emt 0:00:02]} Re3 {[%emt 0:00:04]} 55. Ba2 {[%emt 0:00:02]} Kf6 {[%emt 0:00:02]} 56. Kh3 {[%emt 0:00:02]} Re2 {[%emt 0:00:01]} 57. Kg4 {[%emt 0:00:03]} Bg1 {[%emt 0:00:12]} 58. h3 {[%emt 0:00:01]} Re3 {[%emt 0:00:03]} 59. Rb6 {[%emt 0:00:02]} ({Better is} 59. f5 $16) 59... Bh2 $11 {[%emt 0:00:01] The position is equal.} 60. Rd6 {[%emt 0:00:03]} Rxg3+ {[%emt 0:00:02]} 61. Kh4 {[%emt 0:00:01] Strongly threatening Rd2.} Re3 {[%emt 0:00:01]} 62. Kg4 {[%emt 0:00:02]} Re4 {[%emt 0:00:01]} 63. Kf3 Rxf4+ {[%mdl 32768] Black had all chances to win.  Weighted Error Value: White=0.46/Black=0.41. Loss on time!?} 0-1